fUST/lending_fUST_20250625
["ID","MTS","AMOUNT","RATE_DAILY","PERIOD"]
[367491996,1750822240919,-503.33895302,0.00017216,2]
[367491997,1750822240928,-460.0,0.00017216,2]
[367491998,1750822240938,-452.34029289,0.00017216,2]
[367491999,1750822240948,-460.0,0.00017216,2]
[367492000,1750822240957,-460.0,0.00017216,2]
[367492001,1750822240966,-460.0,0.00017216,2]
[367492002,1750822240975,-460.0,0.00017216,2]
[367492003,1750822240985,-1130.96,0.00017216,2]
[367492004,1750822240994,-460.0,0.00017216,2]
[367492005,1750822241003,-460.0,0.00017216,2]
[367492006,1750822241013,-454.48849408,0.00017216,2]
[367492007,1750822241023,-442.78848297,0.00017216,2]
[367492008,1750822241033,-460.0,0.00017216,2]
[367492009,1750822241042,-460.0,0.00017216,2]
[367492010,1750822241051,-457.41079533,0.00017216,2]
[367492011,1750822241061,-460.0,0.00017216,2]
[367492012,1750822241071,-522.42639287,0.00017216,2]
[367492013,1750822241081,-460.0,0.00017216,2]
[367492014,1750822241091,-460.0,0.00017216,2]
[367492015,1750822241100,-184.01595344,0.00017216,2]
[367492016,1750822241110,-528.21,0.00017216,2]
[367492017,1750822241119,-460.0,0.00017216,2]
[367492018,1750822241128,-893.13,0.00017216,2]
[367492019,1750822241137,-460.0,0.00017216,2]
[367492020,1750822241147,-460.0,0.00017216,2]
[367492021,1750822241156,-460.0,0.00017216,2]
[367492022,1750822241165,-460.0,0.00017216,2]
[367492023,1750822241176,-460.0,0.00017216,2]
[367492024,1750822241186,-460.0,0.00017216,2]
[367492025,1750822241195,-460.0,0.00017216,2]
[367492026,1750822241207,-460.0,0.00017216,2]
[367492027,1750822241217,-460.0,0.00017216,2]
[367492028,1750822241226,-460.0,0.00017216,2]
[367492029,1750822241236,-460.0,0.00017216,2]
[367492030,1750822241246,-460.0,0.00017216,2]
[367492031,1750822241256,-460.0,0.00017216,2]
[367492032,1750822241266,-460.0,0.00017216,2]
[367492033,1750822241276,-460.0,0.00017216,2]
[367492034,1750822241286,-460.0,0.00017216,2]
[367492035,1750822241296,-460.0,0.00017216,2]
[367492036,1750822241305,-460.0,0.00017216,2]
[367492037,1750822241315,-460.0,0.00017216,2]
[367492038,1750822241324,-460.0,0.00017216,2]
[367492039,1750822241334,-460.0,0.00017216,2]
[367492040,1750822241344,-460.0,0.00017216,2]
[367492041,1750822241354,-460.0,0.00017216,2]
[367492042,1750822241363,-460.0,0.00017216,2]
[367492043,1750822241373,-460.0,0.00017216,2]
[367492044,1750822241382,-460.0,0.00017216,2]
[367492045,1750822241392,-460.0,0.00017216,2]
[367492046,1750822241402,-460.0,0.00017216,2]
[367492047,1750822241411,-460.0,0.00017216,2]
[367492048,1750822241420,-460.0,0.00017216,2]
[367492049,1750822241433,-460.0,0.00017216,2]
[367492050,1750822241442,-2120.3,0.00017216,2]
[367492051,1750822241451,-460.0,0.00017217,2]
[367492052,1750822241461,-460.0,0.00017217,2]
[367492053,1750822241470,-460.0,0.00017217,2]
[367492054,1750822241480,-460.0,0.00017217,2]
[367492055,1750822241489,-441.22975194,0.00017217,2]
[367492056,1750822241498,-460.0,0.00017217,2]
[367492057,1750822241507,-466.00761037,0.00017217,2]
[367492058,1750822241516,-522.64507979,0.00017217,2]
[367492059,1750822241526,-463.97765868,0.00017217,2]
[367492060,1750822241535,-473.28163851,0.00017217,2]
[367492061,1750822241545,-460.0,0.00017217,2]
[367492062,1750822241554,-460.0,0.00017217,2]
[367492063,1750822241563,-423.77574886,0.00017217,2]
[367492064,1750822241572,-460.0,0.00017217,2]
[367492065,1750822241582,-460.0,0.00017217,2]
[367492066,1750822241591,-460.0,0.00017217,2]
[367492067,1750822241600,-460.0,0.00017217,2]
[367492068,1750822241609,-460.0,0.00017217,2]
[367492069,1750822241621,-460.0,0.00017217,2]
[367492070,1750822241630,-438.57816002,0.00017217,2]
[367492071,1750822241639,-460.0,0.00017217,2]
[367492072,1750822241648,-460.0,0.00017217,2]
[367492073,1750822241659,-460.0,0.00017217,2]
[367492074,1750822241668,-460.0,0.00017217,2]
[367492075,1750822241679,-485.5017604,0.00017217,2]
[367492076,1750822241688,-460.0,0.00017217,2]
[367492077,1750822241698,-460.0,0.00017217,2]
[367492078,1750822241708,-460.0,0.00017217,2]
[367492079,1750822241718,-460.0,0.00017217,2]
[367492080,1750822241727,-335.22868372,0.00017217,2]
[367492081,1750822241737,-427.93207997,0.00017217,2]
[367492082,1750822241747,-500.0,0.00017217,2]
[367492083,1750822241756,-460.0,0.00017217,2]
[367492084,1750822241766,-460.0,0.00017217,2]
[367492085,1750822241775,-460.0,0.00017217,2]
[367492086,1750822241786,-500.0,0.00017217,2]
[367492087,1750822241795,-463.1194358,0.00017217,2]
[367492088,1750822241805,-460.0,0.00017217,2]
[367492089,1750822241815,-460.0,0.00017217,2]
[367492090,1750822241824,-460.0,0.00017217,2]
[367492091,1750822241833,-462.12170772,0.00017217,2]
[367492092,1750822241843,-460.0,0.00017217,2]
[367492093,1750822241853,-460.0,0.00017217,2]
[367492094,1750822241863,-460.0,0.00017217,2]
[367492095,1750822241873,-463.60217472,0.00017217,2]
[367492096,1750822241883,-460.0,0.00017217,2]
[367492097,1750822241893,-440.47076089,0.00017217,2]
[367492098,1750822241902,-501.78113916,0.00017217,2]
[367492099,1750822241912,-460.0,0.00017217,2]
[367492100,1750822241921,-460.0,0.00017217,2]
[367492101,1750822241932,-460.0,0.00017217,2]
[367492102,1750822241942,-460.0,0.00017217,2]
[367492103,1750822241952,-460.0,0.00017217,2]
[367492104,1750822241962,-460.0,0.00017217,2]
[367492105,1750822241971,-460.0,0.00017217,2]
[367492106,1750822241981,-460.0,0.00017217,2]
[367492107,1750822241990,-460.0,0.00017217,2]
[367492108,1750822241999,-460.0,0.00017217,2]
[367492109,1750822242009,-460.0,0.00017217,2]
[367492110,1750822242019,-460.0,0.00017217,2]
[367492111,1750822242028,-460.0,0.00017217,2]
[367492112,1750822242037,-460.0,0.00017217,2]
[367492113,1750822242046,-460.0,0.00017217,2]
[367492114,1750822242056,-414.96475332,0.00017217,2]
[367492115,1750822242065,-460.0,0.00017217,2]
[367492116,1750822242074,-460.0,0.00017217,2]
[367492117,1750822242084,-460.0,0.00017217,2]
[367492118,1750822242093,-460.0,0.00017217,2]
[367492119,1750822242102,-460.0,0.00017217,2]
[367492120,1750822242111,-460.0,0.00017217,2]
[367492121,1750822242120,-460.0,0.00017217,2]
[367492122,1750822242128,-460.0,0.00017217,2]
[367492123,1750822242137,-460.0,0.00017217,2]
[367492124,1750822242147,-460.0,0.00017217,2]
[367492125,1750822242155,-460.0,0.00017217,2]
[367492126,1750822242164,-460.0,0.00017217,2]
[367492127,1750822242173,-460.0,0.00017217,2]
[367492128,1750822242184,-1211.94,0.00017217,2]
[367492129,1750822242194,-466.94554141,0.00017217,2]
[367492130,1750822242203,-463.060964,0.00017217,2]
[367492131,1750822242212,-460.0,0.00017217,2]
[367492132,1750822242221,-460.0,0.00017217,2]
[367492133,1750822242231,-460.0,0.00017217,2]
[367492134,1750822242240,-460.0,0.00017217,2]
[367492135,1750822242249,-407.04394238,0.00017217,2]
[367492136,1750822242258,-465.78733529,0.00017217,2]
[367492137,1750822242267,-460.0,0.00017217,2]
[367492138,1750822242277,-460.0,0.00017217,2]
[367492139,1750822242286,-460.0,0.00017217,2]
[367492140,1750822242295,-460.0,0.00017217,2]
[367492141,1750822242304,-460.0,0.00017217,2]
[367492142,1750822242313,-460.0,0.00017217,2]
[367492143,1750822242323,-460.0,0.00017217,2]
[367492144,1750822242332,-460.0,0.00017217,2]
[367492145,1750822242343,-1100.59,0.00017217,2]
[367492146,1750822242352,-410.0,0.00017217,2]
[367492147,1750822242362,-460.0,0.00017217,2]
[367492148,1750822242371,-460.0,0.00017217,2]
[367492149,1750822242381,-460.0,0.00017217,2]
[367492150,1750822242390,-460.0,0.00017217,2]
[367492151,1750822242399,-460.0,0.00017217,2]
[367492152,1750822242409,-460.0,0.00017217,2]
[367492153,1750822242418,-460.0,0.00017217,2]
[367492154,1750822242429,-460.0,0.00017217,2]
[367492155,1750822242438,-746.15,0.00017217,2]
[367492156,1750822242447,-460.0,0.00017217,2]
[367492157,1750822242456,-460.0,0.00017217,2]
[367492158,1750822242466,-460.0,0.00017217,2]
[367492159,1750822242475,-460.0,0.00017217,2]
[367492160,1750822242484,-460.0,0.00017217,2]
[367492161,1750822242494,-460.0,0.00017217,2]
[367492162,1750822242503,-1150.89,0.00017217,2]
[367492163,1750822242512,-460.0,0.00017217,2]
[367492164,1750822242522,-460.0,0.00017217,2]
[367492165,1750822242531,-460.0,0.00017217,2]
[367492166,1750822242540,-345.07155169,0.00017217,2]
[367492167,1750822242550,-460.0,0.00017217,2]
[367492168,1750822242559,-500.0,0.00017217,2]
[367492169,1750822242568,-460.0,0.00017217,2]
[367492170,1750822242577,-460.0,0.00017217,2]
[367492171,1750822242587,-464.07704307,0.00017217,2]
[367492172,1750822242597,-460.0,0.00017217,2]
[367492173,1750822242609,-621.42,0.00017217,2]
[367492174,1750822242620,-460.0,0.00017217,2]
[367492175,1750822242629,-460.0,0.00017217,2]
[367492176,1750822242639,-460.0,0.00017217,2]
[367492177,1750822242648,-460.0,0.00017217,2]
[367492178,1750822242657,-632.11,0.00017217,2]
[367492179,1750822242667,-460.0,0.00017217,2]
[367492180,1750822242677,-460.0,0.00017217,2]
[367492181,1750822242687,-460.0,0.00017217,2]
[367492182,1750822242696,-460.0,0.00017217,2]
[367492183,1750822242706,-460.0,0.00017217,2]
[367492184,1750822242715,-460.0,0.00017217,2]
[367492185,1750822242725,-460.0,0.00017217,2]
[367492186,1750822242734,-460.0,0.00017217,2]
[367492187,1750822242743,-455.3119273,0.00017217,2]
[367492188,1750822242753,-460.0,0.00017217,2]
[367492189,1750822242762,-460.0,0.00017218,2]
[367492190,1750822242771,-460.0,0.00017218,2]
[367492191,1750822242782,-460.0,0.00017218,2]
[367492192,1750822242791,-408.97697169,0.00017218,2]
[367492193,1750822242802,-460.0,0.00017218,2]
[367492194,1750822242811,-465.27028143,0.00017218,2]
[367492195,1750822242821,-460.0,0.00017218,2]
[367492196,1750822242830,-440.49483576,0.00017218,2]
[367492198,1750822242840,-460.0,0.00017218,2]
[367492199,1750822242849,-469.38909669,0.00017218,2]
[367492200,1750822242859,-460.0,0.00017218,2]
[367492202,1750822242965,-460.0,0.00017218,2]
[367492203,1750822242986,-473.89459657,0.00017218,2]
[367492205,1750822242996,-465.93686333,0.00017218,2]
[367492206,1750822243005,-468.09120899,0.00017218,2]
[367492207,1750822243015,-469.60422701,0.00017218,2]
[367492208,1750822243024,-460.0,0.00017218,2]
[367492209,1750822243033,-460.0,0.00017218,2]
[367492210,1750822243043,-460.0,0.00017218,2]
[367492211,1750822243052,-436.93742698,0.00017218,2]
[367492212,1750822243062,-460.0,0.00017218,2]
[367492213,1750822243071,-460.0,0.00017218,2]
[367492214,1750822243081,-380.0,0.00017218,2]
[367492215,1750822243091,-464.71042299,0.00017218,2]
[367492216,1750822243100,-460.0,0.00017218,2]
[367492217,1750822243110,-472.03905629,0.00017218,2]
[367492218,1750822243119,-462.44982854,0.00017218,2]
[367492219,1750822243129,-460.54665427,0.00017218,2]
[367492220,1750822243138,-460.0,0.00017218,2]
[367492221,1750822243149,-414.20383321,0.00017218,2]
[367492223,1750822243158,-403.75053481,0.00017218,2]
[367492225,1750822243167,-402.25710202,0.00017218,2]
[367492227,1750822243176,-432.77632321,0.00017218,2]
[367492228,1750822243185,-460.0,0.00017218,2]
[367492229,1750822243195,-466.02183075,0.00017218,2]
[367492230,1750822243204,-434.43435421,0.00017218,2]
[367492231,1750822243214,-460.0,0.00017218,2]
[367492232,1750822243223,-467.91611147,0.00017218,2]
[367492233,1750822243232,-460.0,0.00017218,2]
[367492234,1750822243242,-541.12,0.00017218,2]
[367492235,1750822243253,-460.0,0.00017218,2]
[367492236,1750822243263,-418.13459217,0.00017218,2]
[367492237,1750822243272,-228.05998819,0.00017218,2]
[367492238,1750822243281,-590.0,0.00017218,2]
[367492239,1750822243291,-233.60192639,0.00017218,2]
[367492240,1750822243300,-462.47172055,0.00017218,2]
[367492241,1750822243309,-421.8951327,0.00017218,2]
[367492242,1750822243318,-460.0,0.00017218,2]
[367492243,1750822243328,-437.81544868,0.00017218,2]
[367492244,1750822243338,-460.0,0.00017218,2]
[367492245,1750822243347,-464.70908873,0.00017218,2]
[367492246,1750822243357,-460.0,0.00017218,2]
[367492247,1750822243366,-461.56411624,0.00017218,2]
[367492248,1750822243375,-460.0,0.00017218,2]
[367492249,1750822243384,-460.0,0.00017218,2]
[367492250,1750822243393,-460.0,0.00017218,2]
[367492251,1750822243403,-460.0,0.00017218,2]
[367492252,1750822243412,-300.0,0.00017218,2]
[367492253,1750822243422,-416.67555031,0.00017218,2]
[367492254,1750822243432,-460.0,0.00017218,2]
[367492255,1750822243441,-460.0,0.00017218,2]
[367492257,1750822243450,-460.0,0.00017218,2]
[367492259,1750822243460,-460.0,0.00017218,2]
[367492260,1750822243469,-460.0,0.00017218,2]
[367492261,1750822243479,-460.0,0.00017218,2]
[367492262,1750822243488,-466.50221722,0.00017218,2]
[367492263,1750822243497,-602.20737888,0.00017218,2]
[367492264,1750822243506,-461.12077121,0.00017218,2]
[367492265,1750822243516,-460.0,0.00017218,2]
[367492266,1750822243525,-460.0,0.00017218,2]
[367492267,1750822243535,-433.58578034,0.00017218,2]
[367492268,1750822243544,-383.08542497,0.00017218,2]
[367492269,1750822243554,-443.40378618,0.00017218,2]
[367492270,1750822243562,-433.84638978,0.00017218,2]
[367492271,1750822243572,-460.0,0.00017218,2]
[367492272,1750822243581,-500.0,0.00017218,2]
[367492273,1750822243590,-500.0,0.00017218,2]
[367492274,1750822243601,-460.0,0.00017218,2]
[367492275,1750822243611,-500.0,0.00017218,2]
[367492276,1750822243624,-500.0,0.00017218,2]
[367492277,1750822243634,-460.0,0.00017218,2]
[367492278,1750822243643,-460.0,0.00017218,2]
[367492279,1750822243652,-460.0,0.00017218,2]
[367492280,1750822243664,-441.12400738,0.00017218,2]
[367492281,1750822243672,-467.84222665,0.00017218,2]
[367492282,1750822243682,-442.40068567,0.00017218,2]
[367492283,1750822243693,-277.62675076,0.00017218,2]
[367492284,1750822243702,-460.0,0.00017218,2]
[367492285,1750822243711,-460.0,0.00017218,2]
[367492286,1750822243720,-460.0,0.00017218,2]
[367492287,1750822243730,-433.67578064,0.00017218,2]
[367492288,1750822243739,-460.0,0.00017218,2]
[367492289,1750822243748,-413.4388321,0.00017218,2]
[367492290,1750822243757,-460.0,0.00017218,2]
[367492291,1750822243766,-460.0,0.00017218,2]
[367492292,1750822243776,-460.0,0.00017218,2]
[367492293,1750822243785,-455.17489689,0.00017218,2]
[367492294,1750822243794,-460.0,0.00017218,2]
[367492295,1750822243803,-412.48839861,0.00017218,2]
[367492296,1750822243812,-366.85642596,0.00017218,2]
[367492297,1750822243821,-460.0,0.00017218,2]
[367492298,1750822243831,-440.0,0.00017218,2]
[367492299,1750822243840,-460.0,0.00017218,2]
[367492300,1750822243849,-393.85665487,0.00017218,2]
[367492301,1750822243858,-460.0,0.00017218,2]
[367492302,1750822243868,-460.0,0.00017218,2]
[367492303,1750822243877,-432.55554105,0.00017218,2]
[367492304,1750822243886,-602.41,0.00017218,2]
[367492305,1750822243895,-432.10861023,0.00017218,2]
[367492306,1750822243904,-312.1468531,0.00017218,2]
[367492307,1750822243913,-460.0,0.00017218,2]
[367492308,1750822243922,-460.0,0.00017218,2]
[367492309,1750822243933,-460.0,0.00017218,2]
[367492310,1750822243943,-460.0,0.00017218,2]
[367492311,1750822243952,-460.0,0.00017218,2]
[367492312,1750822243961,-460.0,0.00017218,2]
[367492314,1750822243970,-627.64014139,0.00017218,2]
[367492316,1750822243979,-316.86998609,0.00017218,2]
[367492317,1750822243989,-460.0,0.00017218,2]
[367492318,1750822243998,-460.0,0.00017218,2]
[367492319,1750822244007,-194.01649872,0.00017218,2]
[367492320,1750822244016,-475.94843183,0.00017218,2]
[367492321,1750822244025,-460.0,0.00017218,2]
[367492322,1750822244034,-460.0,0.00017218,2]
[367492323,1750822244043,-483.06685245,0.00017218,2]
[367492324,1750822244053,-475.38199753,0.00017218,2]
[367492325,1750822244062,-460.0,0.00017218,2]
[367492326,1750822244072,-330.10578544,0.00017218,2]
[367492327,1750822244081,-478.37098556,0.00017218,2]
[367492328,1750822244091,-264.87176775,0.00017218,2]
[367492329,1750822244100,-360.0,0.00017219,2]
[367492330,1750822244109,-156.95776634,0.00017219,2]
[367492331,1750822244119,-446.20317163,0.00017219,2]
[367492332,1750822244128,-460.0,0.00017219,2]
[367492333,1750822244138,-460.0,0.00017219,2]
[367492334,1750822244148,-460.0,0.00017219,2]
[367492335,1750822244158,-441.84829069,0.00017219,2]
[367492336,1750822244167,-460.0,0.00017219,2]
[367492337,1750822244178,-369.70368793,0.00017219,2]
[367492338,1750822244187,-460.0,0.00017219,2]
[367492339,1750822244197,-460.0,0.00017219,2]
[367492340,1750822244206,-460.0,0.00017219,2]
[367492341,1750822244216,-460.0,0.00017219,2]
[367492342,1750822244225,-460.0,0.00017219,2]
[367492343,1750822244236,-460.0,0.00017219,2]
[367492344,1750822244245,-490.44846432,0.00017219,2]
[367492345,1750822244254,-460.78943362,0.00017219,2]
[367492346,1750822244264,-460.0,0.00017219,2]
[367492347,1750822244273,-465.70998,0.00017219,2]
[367492348,1750822244282,-460.0,0.00017219,2]
[367492349,1750822244291,-460.0,0.00017219,2]
[367492350,1750822244300,-627.7,0.00017219,2]
[367492351,1750822244309,-460.0,0.00017219,2]
[367492352,1750822244318,-352.15885599,0.00017219,2]
[367492353,1750822244327,-460.0,0.00017219,2]
[367492354,1750822244336,-460.0,0.00017219,2]
[367492355,1750822244345,-460.0,0.00017219,2]
[367492356,1750822244354,-460.0,0.00017219,2]
[367492357,1750822244363,-460.0,0.00017219,2]
[367492358,1750822244372,-460.0,0.00017219,2]
[367492359,1750822244382,-443.76641053,0.00017219,2]
[367492360,1750822244392,-460.0,0.00017219,2]
[367492361,1750822244401,-460.0,0.00017219,2]
[367492362,1750822244410,-440.0,0.00017219,2]
[367492363,1750822244419,-416.06914749,0.00017219,2]
[367492364,1750822244428,-460.0,0.00017219,2]
[367492365,1750822244438,-460.0,0.00017219,2]
[367492366,1750822244447,-460.0,0.00017219,2]
[367492367,1750822244456,-460.0,0.00017219,2]
[367492368,1750822244465,-463.7672001,0.00017219,2]
[367492369,1750822244475,-467.13980284,0.00017219,2]
[367492370,1750822244484,-460.0,0.00017219,2]
[367492371,1750822244493,-460.0,0.00017219,2]
[367492372,1750822244503,-460.0,0.00017219,2]
[367492373,1750822244513,-460.0,0.00017219,2]
[367492374,1750822244523,-460.0,0.00017219,2]
[367492375,1750822244532,-460.0,0.00017219,2]
[367492376,1750822244541,-500.0,0.0001722,2]
[367492377,1750822244550,-500.0,0.0001722,2]
[367492378,1750822244560,-460.0,0.00017221,2]
[367492379,1750822244569,-388.5,0.00017221,2]
[367492380,1750822244578,-460.0,0.00017221,2]
[367492381,1750822244587,-460.0,0.00017221,2]
[367492382,1750822244595,-460.0,0.00017221,2]
[367492383,1750822244605,-414.89362043,0.00017221,2]
[367492384,1750822244616,-460.0,0.00017221,2]
[367492385,1750822244625,-183.27479876,0.0001746,2]
[367492386,1750822244634,-460.0,0.00017488,2]
[367492387,1750822244643,-460.0,0.00017488,2]
[367492388,1750822244653,-464.74996571,0.00017488,2]
[367492389,1750822244662,-340.5105818,0.00017489,2]
[367492390,1750822244671,-513.87357547,0.00017489,2]
[367492391,1750822244682,-1104.74,0.00017489,2]
[367492392,1750822244691,-460.0,0.00017489,2]
[367492393,1750822244701,-1267.06,0.00017489,2]
[367492394,1750822244711,-719.94515797,0.00017489,2]
[367492395,1750822244863,-721.09484203,0.00017489,2]
[367492396,1750822244873,-460.0,0.00017489,2]
[367492397,1750822244883,-460.0,0.00017489,2]
[367492398,1750822244892,-399.17212824,0.00017489,2]
[367492399,1750822245257,-500.0,0.0001694,2]
[367492400,1750822245268,-430.0,0.0001694,2]
[367492401,1750822245277,-500.0,0.0001694,2]
[367492402,1750822245286,-500.0,0.0001694,2]
[367492403,1750822245295,-460.0,0.0001694,2]
[367492404,1750822245305,-402.516297,0.00016943,2]
[367492405,1750822245314,-460.0,0.00016944,2]
[367492406,1750822245324,-60.82787176,0.00017489,2]
[367492407,1750822245333,-668.7,0.00017489,2]
[367492408,1750822245342,-460.0,0.00017489,2]
[367492409,1750822245352,-460.0,0.00017489,2]
[367492410,1750822245362,-703.01,0.00017489,2]
[367492411,1750822245371,-240.01,0.0001749,2]
[367492412,1750822245381,-460.0,0.0001749,2]
[367492413,1750822245390,-161.90401864,0.0001749,2]
[367492414,1750822245399,-448.77004474,0.0001749,2]
[367492415,1750822245408,-455.00995715,0.0001749,2]
[367492416,1750822245417,-430.61201168,0.0001749,2]
[367492417,1750822245427,-460.0,0.0001749,2]
[367492418,1750822245436,-460.0,0.0001749,2]
[367492419,1750822245446,-460.0,0.0001749,2]
[367492420,1750822245456,-1130.96,0.0001749,2]
[367492421,1750822245465,-460.0,0.0001749,2]
[367492422,1750822245475,-582.91,0.0001749,2]
[367492423,1750822245484,-460.0,0.0001749,2]
[367492424,1750822245493,-584.36,0.0001749,2]
[367492425,1750822245502,-460.0,0.0001749,2]
[367492426,1750822245511,-460.0,0.0001749,2]
[367492427,1750822245521,-460.0,0.0001749,2]
[367492428,1750822245530,-893.13,0.0001749,2]
[367492429,1750822245539,-460.0,0.0001749,2]
[367492430,1750822245548,-460.0,0.0001749,2]
[367492431,1750822245558,-448.53803263,0.0001749,2]
[367492432,1750822245568,-460.0,0.0001749,2]
[367492433,1750822245577,-445.49132764,0.0001749,2]
[367492434,1750822245586,-460.0,0.0001749,2]
[367492435,1750822245598,-460.0,0.0001749,2]
[367492436,1750822245608,-460.0,0.0001749,2]
[367492437,1750822245620,-460.0,0.0001749,2]
[367492438,1750822245629,-460.0,0.0001749,2]
[367492439,1750822245638,-460.0,0.0001749,2]
[367492440,1750822245648,-438.24349034,0.0001749,2]
[367492441,1750822245661,-460.0,0.0001749,2]
[367492442,1750822245670,-460.0,0.0001749,2]
[367492443,1750822245679,-460.0,0.0001749,2]
[367492444,1750822245689,-460.0,0.0001749,2]
[367492445,1750822245699,-460.0,0.0001749,2]
[367492447,1750822245715,-460.0,0.0001749,2]
[367492449,1750822245728,-460.0,0.0001749,2]
[367492451,1750822245737,-460.0,0.0001749,2]
[367492453,1750822245747,-460.0,0.0001749,2]
[367492455,1750822245756,-2120.3,0.0001749,2]
[367492457,1750822245765,-460.0,0.00017491,2]
[367492459,1750822245775,-460.0,0.00017491,2]
[367492460,1750822245785,-460.0,0.00017491,2]
[367492462,1750822245794,-460.0,0.00017491,2]
[367492464,1750822245804,-460.0,0.00017491,2]
[367492466,1750822245813,-460.0,0.00017491,2]
[367492468,1750822245822,-231.37,0.00017491,2]
[367492470,1750822245832,-299.49543788,0.00017491,2]
[367492472,1750822245841,-460.0,0.00017491,2]
[367492474,1750822245851,-564.20924757,0.00017491,2]
[367492476,1750822245860,-460.0,0.00017491,2]
[367492478,1750822245869,-460.0,0.00017491,2]
[367492480,1750822245879,-356.45344417,0.00017491,2]
[367492481,1750822245888,-460.0,0.00017491,2]
[367492482,1750822245897,-460.0,0.00017491,2]
[367492483,1750822245906,-460.0,0.00017491,2]
[367492484,1750822245915,-460.0,0.00017491,2]
[367492485,1750822245924,-460.0,0.00017491,2]
[367492486,1750822245933,-460.0,0.00017491,2]
[367492487,1750822245943,-587.54,0.00017491,2]
[367492488,1750822245953,-460.0,0.00017491,2]
[367492489,1750822245962,-460.0,0.00017491,2]
[367492490,1750822245971,-460.0,0.00017491,2]
[367492491,1750822245981,-460.0,0.00017491,2]
[367492492,1750822245991,-460.0,0.00017491,2]
[367492493,1750822246003,-460.0,0.00017491,2]
[367492494,1750822246012,-236.00006241,0.00017491,2]
[367492495,1750822246022,-460.0,0.00017491,2]
[367492496,1750822246031,-460.0,0.00017491,2]
[367492497,1750822246041,-460.0,0.00017491,2]
[367492498,1750822246050,-460.0,0.00017491,2]
[367492499,1750822246059,-460.0,0.00017491,2]
[367492500,1750822246069,-460.0,0.00017491,2]
[367492501,1750822246085,-460.0,0.00017491,2]
[367492502,1750822246100,-460.0,0.00017491,2]
[367492503,1750822246112,-460.0,0.00017491,2]
[367492504,1750822246125,-1211.94,0.00017491,2]
[367492505,1750822246141,-460.0,0.00017491,2]
[367492506,1750822246155,-460.0,0.00017491,2]
[367492507,1750822246170,-460.0,0.00017491,2]
[367492508,1750822246184,-460.0,0.00017491,2]
[367492509,1750822246197,-460.0,0.00017491,2]
[367492510,1750822246208,-460.0,0.00017491,2]
[367492511,1750822246223,-460.0,0.00017491,2]
[367492512,1750822246236,-460.0,0.00017491,2]
[367492513,1750822246250,-599.47939977,0.00017491,2]
[367492514,1750822246264,-460.0,0.00017491,2]
[367492515,1750822246278,-1100.59,0.00017491,2]
[367492516,1750822246291,-460.0,0.00017491,2]
[367492517,1750822246304,-460.0,0.00017491,2]
[367492518,1750822246318,-460.0,0.00017491,2]
[367492519,1750822246332,-460.0,0.00017491,2]
[367492520,1750822246345,-460.0,0.00017491,2]
[367492521,1750822246358,-460.0,0.00017491,2]
[367492522,1750822246372,-460.0,0.00017491,2]